[Event "1000GM Schev-C-B February 2024"]
[Site "Santa Clara"]
[Date "2024.02.26"]
[Round "5.4"]
[White "Chinni, Rishabh"]
[Black "Gracia Alvarez, Gerardo Antonio"]
[Result "0-1"]
[ECO "C76"]
[WhiteElo "1939"]
[BlackElo "2224"]
[Annotator "RC"]
[PlyCount "91"]
[EventDate "2024.02.13"]
[EventType "schev"]
[EventCountry "USA"]
[SourceTitle "playchess.com"]
[Source "ChessBase"]
[SourceQuality "1"]
[TimeControl "5400+30"]

1. e4 {[%emt 0:00:01]} e5 {[%emt 0:00:09]} 2. Nf3 {[%emt 0:00:04]} Nc6 {[%emt 1:31:21]} 3. Bb5 {[%emt 0:00:02]} a6 {[%emt 0:00:00]} 4. Ba4 {[%emt 0:00:04]} d6 {[%emt 0:00:00]} 5. d4 {[%emt 0:00:23]} Bd7 {[%emt 0:00:00]} 6. c3 {[%emt 0:01:51]} g6 {[%emt 0:00:00]} 7. O-O {[%emt 0:00:40]} Bg7 {[%emt 0:00:00]} 8. Be3 {[%emt 0:01:07]} Nf6 {[%emt 0:00:00]} 9. Nbd2 {[%emt 0:00:18]} Ng4 {[%emt 0:00:00]} 10. Bg5 {[%emt 0:01:43]} f6 {[%emt 0:00:00]} 11. Bh4 {[%emt 0:00:14]} h5 {[%emt 0:00:00]} 12. h3 {[%emt 0:03:15]} g5 {[%emt 0:00:00]} 13. hxg4 {[%emt 0:03:03]} hxg4 {[%emt 0:00:00]} 14. Bg3 {[%emt 0:12:41]} gxf3 {[%emt 0:00:00]} 15. Nxf3 {[%emt 0:00:07]} Ne7 {[%emt 0:06:30]} 16. Bxd7+ {[%emt 0:03:26]} Qxd7 {[%emt 0:00:00]} 17. dxe5 {[%emt 0:00:55]} dxe5 {[%emt 0:00:00]} 18. Qxd7+ {[%emt 0:01:13]} Kxd7 {[%emt 0:00:00]} 19. Rfd1+ {[%emt 0:00:14]} Ke6 {[%emt 0:00:00]} 20. Rd3 {[%emt 0:06:04]} Rad8 {[%emt 0:00:00]} 21. Rad1 {[%emt 0:00:15]} Rxd3 {[%emt 0:00:00]} 22. Rxd3 {[%emt 0:00:02]} Nc8 {[%emt 0:00:00]} 23. Nd2 {[%emt 0:04:22]} Bf8 {[%emt 0:00:00]} 24. f3 {[%emt 0:16:20]} Nb6 {[%emt 0:00:00]} 25. Bf2 {[%emt 0:01:01]} Nd7 {[%emt 0:05:00]} 26. b4 {[%emt 0:05:48]} c5 {[%emt 0:00:00]} 27. a3 {[%emt 0:00:49]} Be7 {[%emt 0:00:00]} 28. Nc4 {[%emt 0:02:42]} Rc8 {[%emt 0:00:00]} 29. Ne3 {[%emt 0:01:17]} Nb6 {[%emt 0:00:00]} 30. Nd5 {[%emt 0:08:15]} Nxd5 {[%emt 0:00:00]} 31. exd5+ {[%emt 0:00:23]} Kd7 {[%emt 0:00:00]} 32. g4 {[%emt 0:07:50]} Bd6 {[%emt 0:00:00]} 33. Kg2 {[%emt 0:01:31]} cxb4 {[%emt 0:00:00]} 34. cxb4 {[%emt 0:00:24]} Rc4 {[%emt 0:00:00]} 35. Be3 {[%emt 0:02:30]} Rc2+ {[%emt 0:00:00]} 36. Kf1 {[%emt 0:00:24]} Ra2 {[%emt 0:00:00]} 37. Bb6 {[%emt 0:01:06]} Ke7 {[%emt 0:06:00]} 38. Kg1 {[%emt 0:00:25]} Rc2 {[%emt 0:00:00]} 39. Kf1 {[%emt 0:00:06]} Kf7 {[%emt 0:01:00]} 40. Kg1 {[%emt 0:00:30]} Kg6 {[%emt 0:00:00]} 41. Kf1 {[%emt 0:01:23]} Rc4 {[%emt 0:00:00]} 42. Ke2 {[%emt 0:16:42]} e4 {[%emt 0:01:30]} 43. fxe4 {[%emt 0:00:30]} Rxe4+ 44. Kf3 Rf4+ {[%emt 0:01:00]} 45. Ke3 {[%emt 0:01:00]} Rxg4 {[%emt 0:00:30]} 46. Bc5 {[%emt 0:00:30]} 0-1

[Event "1000GM Schev-C-B February 2024"]
[Site "Santa Clara"]
[Date "2024.02.26"]
[Round "5.5"]
[White "Jin, Austin"]
[Black "Echavarria, Johann"]
[Result "0-1"]
[ECO "B22"]
[WhiteElo "1836"]
[BlackElo "2269"]
[Annotator "TA"]
[PlyCount "96"]
[EventDate "2024.02.13"]
[EventType "schev"]
[EventCountry "USA"]
[SourceTitle "playchess.com"]
[Source "ChessBase"]
[SourceQuality "1"]
[TimeControl "5400+30"]

{[%evp 13,96,28,33,0,12,12,22,-4,0,-18,-15,-31,19,-12,-9,-22,-24,-29,-26,-22,-20,-25,-10,-13,-12,-10,-10,-7,-9,-7,-7,-13,-14,-10,-10,-10,-7,-7,-7,-7,-7,-11,-4,-25,-6,-117,-25,-23,-26,-34,-50,-91,-91,-88,-86,-143,-140,-186,-186,-245,-144,-466,-1227,-1182,-1033,-1020,-1004,-458,-121,-2659,-2623,-2379,-2302,-1969,-1694,-2408,-2055,-12829,-12488,-29961,-29958,-29958,-29960,-6420,-6079]} 1. e4 {[%emt 1:31:00]} c5 {[%emt 0:03:19]} 2. c3 {[%emt 0:00:00]} d5 {[%emt 0:00:14]} 3. exd5 {[%emt 0:00:00]} Qxd5 {[%emt 0:00:02]} 4. d4 {[%emt 0:00:00]} Nf6 {[%emt 0:00:11]} 5. Nf3 {[%emt 0:00:00]} cxd4 {[%emt 0:01:07]} 6. cxd4 {[%emt 0:00:00]} e6 {[%emt 0:00:03]} 7. Nc3 {[%emt 0:00:00]} Qd6 {[%emt 0:00:11]} 8. Be2 {[%emt 0:00:00]} Be7 {[%emt 0:00:04]} 9. O-O {[%emt 0:00:00]} O-O {[%emt 0:00:07]} 10. Nb5 {[%emt 0:00:00] The position is equal.} Qb6 {[%emt 0:00:49]} 11. Bg5 {[%emt 0:00:00]} Nc6 {[%emt 0:04:42]} 12. Na3 {[%emt 0:00:00]} (12. Qc2 {looks sharper.} Nd5 13. Rad1 Bd7 14. Nc3) 12... Na5 {[%emt 0:06:33]} (12... Nd5 $15) 13. Rb1 {[%emt 0:00:00][%cal Ob2b4]} Qd8 {[%emt 0:11:48]} 14. Nc4 {[%emt 0:00:00]} Nxc4 {[%emt 0:03:20]} 15. Bxc4 {[%emt 0:00:00]} b6 {[%emt 0:04:37]} 16. Bxf6 {[%emt 0:00:00]} Bxf6 {[%emt 0:00:08]} 17. d5 {[%emt 0:00:00]} exd5 {[%emt 0:08:33]} 18. Bxd5 {[%emt 0:00:00] [#]} Bf5 $1 {[%emt 0:04:24] A strong pair of Bishops.} 19. Bxa8 {[%emt 0:00:00] Bc6 is the strong threat.} Bxb1 {[%emt 0:00:46]} 20. Qxb1 {[%emt 0:00:00]} Qxa8 {[%emt 0:00:03]} 21. b3 {[%emt 0:00:00]} g6 {[%emt 0:03:40]} 22. h3 {[%emt 0:00:00]} Rc8 {[%emt 0:01:48]} 23. Rc1 {[%emt 0:00:00]} Rxc1+ {[%emt 0:00:51]} 24. Qxc1 $11 {[%emt 0:00:00][%mdl 4096] Endgame. KQB-KQN} Qe4 {[%emt 0:01:30]} 25. Qd1 {[%emt 0:00:00]} Kg7 {[%emt 0:03:38]} 26. Kf1 {[%emt 0:00:00]} b5 {[%emt 0:02:35]} 27. a4 {[%emt 0:00:00]} a6 {[%emt 0:05:28]} 28. Kg1 {[%emt 0:00:00]} h5 {[%emt 0:00:23]} 29. Qe1 {[%emt 0:00:00]} (29. axb5 $11 axb5 30. g3) 29... Qxe1+ {[%emt 0:09:06]} (29... Qd3 $1 $17 {[%cal Rd3b3]} 30. axb5 axb5 (30... Qxb3 31. bxa6 Qa2 32. Qf1 $16) (30... Qxb5 31. Qf1 $11)) 30. Nxe1 {[%emt 0:00:00]} bxa4 {[%emt 0:00:04]} 31. bxa4 $17 {[%emt 0:00:00] KB-KN} Kf8 {[%emt 0:00:02]} 32. Kf1 {[%emt 0:02:07] White is now going downhill.} Ke7 $1 {[%emt 0:00:26]} 33. Ke2 {[%emt 0:01:11]} Kd6 {[%emt 0:00:14]} 34. Nd3 {[%emt 0:02:09]} (34. Nc2 $142) 34... a5 {[%emt 0:26:44]} 35. f4 {[%emt 0:02:01]} (35. g4 $17 {might work better.}) 35... Kd5 $19 {[%emt 0:00:00]} 36. f5 {[%emt 0:01:53]} (36. g3 $142) 36... g5 {[%emt 0:00:00]} (36... gxf5 $19 {White must now prevent ...h4.} 37. Nf4+ Kc4 38. Nxh5 Be5) 37. g4 $2 {[%emt 0:03:23][%mdl 8192] [#]} (37. Kf3 $17) 37... hxg4 $1 {[%emt 0:00:00]} 38. hxg4 {[%emt 0:00:03]} Ke4 {[%emt 0:00:00]} 39. Nc5+ {[%emt 0:00:36]} Kf4 {[%emt 0:00:00]} 40. Nb7 {[%emt 0:00:36]} Bc3 $2 {[%emt 0:00:00]} (40... Kxg4 $19 {has better winning chances. ...Kh3 would now be deadly.} 41. Nd6 Kh3) 41. Nd6 $2 {[%emt 0:03:49][%mdl 8192] [#]} (41. Nd8 $17) 41... f6 $1 {[%emt 0:00:00]} (41... Kxg4 42. Nxf7 Kxf5 43. Kf3 $17) 42. Kd3 {[%emt 0:01:22]} Bb4 {[%emt 0:00:00]} 43. Ne4 {[%emt 0:00:15]} Be7 {[%emt 0:00:00]} 44. Nd2 {[%emt 0:00:47]} Kxg4 {[%emt 0:00:00]} 45. Ke4 {[%emt 0:00:12]} Kh3 {[%emt 0:00:00] ( -> ...g4)} 46. Nc4 {[%emt 0:00:11]} g4 {[%emt 0:00:00]} 47. Ne3 {[%emt 0:00:40]} Bd6 {[%emt 0:00:00]} 48. Nd1 {[%emt 0:01:09]} Bc5 {[%emt 0:00:27] Weighted Error Value: White=0.81/Black=0.22 (precise) .  Loses game:     	White=1     	---        Mistake:       	White=4     	Black=3      Inaccurate:     	White=3     	---        OK:         	White=7     	Black=11     Best:        	White=1     	Black=4      Strong:       	---       	Black=3} 0-1